fUST/lending_fUST_20240715
["ID","MTS","AMOUNT","RATE_DAILY","PERIOD"]
[332194970,1721026259455,-153.0,0.00025808,2]
[332194971,1721026259464,-153.0,0.00025808,2]
[332194972,1721026259474,-153.0,0.00025808,2]
[332194973,1721026259483,-153.0,0.00025808,2]
[332194974,1721026259493,-153.0,0.00025808,2]
[332194975,1721026259502,-153.0,0.00025808,2]
[332194976,1721026259512,-153.0,0.00025808,2]
[332194977,1721026259521,-153.0,0.00025808,2]
[332194978,1721026259531,-153.0,0.00025808,2]
[332194979,1721026259541,-153.0,0.00025808,2]
[332194980,1721026259551,-153.0,0.00025808,2]
[332194981,1721026259561,-153.0,0.00025808,2]
[332194982,1721026259570,-153.0,0.00025808,2]
[332194983,1721026259580,-153.0,0.00025808,2]
[332194984,1721026259590,-153.0,0.00025808,2]
[332194985,1721026259600,-153.0,0.00025808,2]
[332194986,1721026259610,-153.0,0.00025808,2]
[332194987,1721026259619,-153.0,0.00025808,2]
[332194988,1721026259629,-153.0,0.00025808,2]
[332194989,1721026259639,-153.0,0.00025808,2]
[332194990,1721026259649,-153.0,0.00025808,2]
[332194991,1721026259658,-280.5,0.00025838,2]
[332194992,1721026259668,-2500.0,0.00026,2]
[332194993,1721026259677,-219.34,0.00026,3]
[332194994,1721026259687,-154.66746495,0.00026,2]
[332194995,1721026259697,-509.98027981,0.00026027,2]
[332194996,1721026259706,-500.0,0.00026027,2]
[332194997,1721026259715,-500.0,0.00026027,2]
[332194998,1721026259725,-513.06162954,0.00026027,2]
[332194999,1721026259735,-500.0,0.00026027,2]
[332195000,1721026259744,-500.0,0.00026027,2]
[332195001,1721026259753,-500.0,0.00026027,2]
[332195002,1721026259763,-500.0,0.00026027,2]
[332195003,1721026259772,-500.0,0.00026027,2]
[332195004,1721026259781,-1045.52,0.00026027,4]
[332195005,1721026259790,-509.97104834,0.00026027,2]
[332195006,1721026259799,-500.0,0.00026027,2]
[332195007,1721026259809,-500.0,0.00026027,2]
[332195008,1721026259818,-500.0,0.00026027,2]
[332195009,1721026259829,-500.0,0.00026027,2]
[332195010,1721026259839,-500.0,0.00026027,2]
[332195011,1721026259848,-500.0,0.00026027,2]
[332195012,1721026259858,-500.0,0.00026027,2]
[332195013,1721026259867,-500.0,0.00026027,2]
[332195014,1721026259877,-500.0,0.00026027,2]
[332195015,1721026259886,-500.0,0.00026027,2]
[332195016,1721026259895,-507.17628448,0.00026027,2]
[332195017,1721026259905,-500.0,0.00026027,2]
[332195018,1721026259914,-500.0,0.00026027,2]
[332195019,1721026259923,-500.0,0.00026027,2]
[332195020,1721026259933,-500.0,0.00026027,2]
[332195021,1721026259942,-500.0,0.00026027,2]
[332195022,1721026259951,-500.0,0.00026027,2]
[332195023,1721026259961,-500.0,0.00026027,2]
[332195024,1721026259970,-500.0,0.00026027,2]
[332195025,1721026259980,-500.0,0.00026027,2]
[332195026,1721026259990,-500.0,0.00026027,2]
[332195027,1721026259999,-500.0,0.00026027,2]
[332195028,1721026260009,-500.0,0.00026027,2]
[332195029,1721026260017,-500.0,0.00026027,2]
[332195030,1721026260027,-500.0,0.00026027,2]
[332195031,1721026260036,-535.66422527,0.00026027,2]
[332195032,1721026260046,-509.97516447,0.00026027,2]
[332195033,1721026260056,-506.71600625,0.00026027,2]
[332195034,1721026260066,-500.0,0.00026027,2]
[332195035,1721026260077,-500.0,0.00026027,2]
[332195036,1721026260087,-500.0,0.00026027,2]
[332195037,1721026260098,-500.0,0.00026027,2]
[332195038,1721026260109,-230.59385709,0.00026027,2]
[332195039,1721026260120,-500.0,0.00026027,2]
[332195040,1721026260129,-500.0,0.00026027,2]
[332195041,1721026260138,-551.41277839,0.00026027,2]
[332195042,1721026260148,-577.02987716,0.00026027,2]
[332195043,1721026260157,-500.0,0.00026027,2]
[332195044,1721026260166,-500.0,0.00026027,2]
[332195045,1721026260176,-1500.0,0.00026027,2]
[332195046,1721026260185,-392.14598403,0.00026027,2]
[332195047,1721026260194,-805.28,0.00026027,2]
[332195048,1721026260204,-500.0,0.00026027,2]
[332195049,1721026260213,-427.32438254,0.00026027,2]
[332195050,1721026260223,-500.0,0.00026027,2]
[332195051,1721026260232,-520.46750691,0.00026027,2]
[332195052,1721026260241,-500.0,0.00026027,2]
[332195053,1721026260251,-500.0,0.00026027,2]
[332195054,1721026260261,-500.0,0.00026027,2]
[332195055,1721026260270,-151.56265017,0.00026027,2]
[332195056,1721026260280,-500.0,0.00026027,2]
[332195057,1721026260290,-547.26847277,0.00026027,2]
[332195058,1721026260300,-500.0,0.00026027,2]
[332195059,1721026260309,-500.0,0.00026027,2]
[332195060,1721026260318,-508.31820993,0.00026027,3]
[332195061,1721026260329,-1706.13,0.00026027,2]
[332195062,1721026260338,-502.75765356,0.00026027,2]
[332195063,1721026260348,-500.0,0.00026027,2]
[332195064,1721026260424,-500.0,0.00026027,2]
[332195065,1721026260435,-200.0,0.00026027,2]
[332195066,1721026260445,-633.45878141,0.00026027,2]
[332195067,1721026260454,-1096.79,0.00026027,2]
[332195068,1721026260463,-500.0,0.00026027,2]
[332195069,1721026260473,-500.0,0.00026027,2]
[332195070,1721026260483,-3884.22,0.00026027,2]
[332195071,1721026260492,-168.46936171,0.00026027,2]
[332195072,1721026260502,-500.0,0.00026027,2]
[332195073,1721026260513,-320.26514962,0.00026027,2]
[332195074,1721026260522,-281.40957763,0.00026027,2]
[332195075,1721026260531,-500.0,0.00026027,2]
[332195076,1721026260540,-500.0,0.00026027,2]
[332195077,1721026260549,-500.0,0.00026027,2]
[332195078,1721026260559,-500.0,0.00026027,2]
[332195079,1721026260569,-520.36977266,0.00026027,2]
[332195080,1721026260582,-500.0,0.00026027,2]
[332195081,1721026260594,-500.0,0.00026027,2]
[332195082,1721026260605,-500.0,0.00026027,2]
[332195083,1721026260618,-500.0,0.00026027,2]
[332195084,1721026260627,-500.0,0.00026027,2]
[332195085,1721026260638,-500.0,0.00026027,2]
[332195086,1721026260648,-500.0,0.00026027,2]
[332195087,1721026260659,-500.0,0.00026027,2]
[332195088,1721026260669,-500.0,0.00026027,2]
[332195089,1721026260678,-585.56533648,0.00026027,2]
[332195090,1721026260689,-500.0,0.00026027,2]
[332195091,1721026260700,-601.884997,0.00026027,2]
[332195092,1721026260709,-500.0,0.00026027,2]
[332195093,1721026260718,-500.0,0.00026027,2]
[332195094,1721026260727,-500.0,0.00026027,2]
[332195095,1721026260736,-260.33364728,0.00026027,2]
[332195096,1721026260746,-500.0,0.00026027,2]
[332195097,1721026260755,-1172.7,0.00026027,2]
[332195098,1721026260765,-500.0,0.00026027,2]
[332195099,1721026260775,-500.0,0.00026027,2]
[332195100,1721026260784,-500.0,0.00026027,2]
[332195101,1721026260793,-500.0,0.00026027,2]
[332195102,1721026260803,-514.00914692,0.00026027,2]
[332195103,1721026260813,-500.0,0.00026027,2]
[332195104,1721026260822,-535.89,0.00026027,2]
[332195105,1721026260831,-260.01269459,0.00026027,2]
[332195106,1721026260841,-500.0,0.00026027,2]
[332195107,1721026260850,-500.0,0.00026027,2]
[332195108,1721026260860,-500.0,0.00026027,2]
[332195109,1721026260870,-653.44,0.00026027,2]
[332195110,1721026260880,-500.0,0.00026027,2]
[332195111,1721026260889,-500.0,0.00026027,2]
[332195112,1721026260901,-500.0,0.00026027,2]
[332195113,1721026260910,-500.0,0.00026027,2]
[332195114,1721026260920,-522.62,0.00026027,2]
[332195115,1721026260931,-500.0,0.00026027,2]
[332195116,1721026260942,-742.99,0.00026027,2]
[332195117,1721026260952,-500.0,0.00026027,2]
[332195118,1721026260963,-607.04,0.00026027,2]
[332195119,1721026260974,-500.0,0.00026027,2]
[332195120,1721026260986,-500.0,0.00026027,2]
[332195121,1721026260996,-500.0,0.00026027,2]
[332195122,1721026261005,-500.0,0.00026027,2]
[332195123,1721026261014,-500.0,0.00026027,2]
[332195124,1721026261024,-500.0,0.00026027,2]
[332195125,1721026261035,-724.14,0.00026027,2]
[332195126,1721026261046,-14894.31,0.00026027,2]
[332195127,1721026261056,-500.0,0.00026027,2]
[332195128,1721026261067,-5499.13,0.00026027,2]
[332195129,1721026261081,-500.0,0.00026027,2]
[332195130,1721026261092,-500.0,0.00026027,2]
[332195131,1721026261103,-500.0,0.00026027,2]
[332195132,1721026261113,-500.0,0.00026027,2]
[332195133,1721026261123,-500.0,0.00026027,2]
[332195134,1721026261133,-500.0,0.00026027,2]
[332195135,1721026261142,-287.29070971,0.00026027,2]
[332195136,1721026261152,-2970.66,0.00026027,2]
[332195137,1721026261162,-500.0,0.00026027,2]
[332195138,1721026261171,-500.0,0.00026027,2]
[332195139,1721026261181,-500.0,0.00026027,2]
[332195140,1721026261191,-822.23,0.00026027,2]
[332195141,1721026261200,-500.0,0.00026027,2]
[332195142,1721026261210,-500.0,0.00026027,2]
[332195143,1721026261220,-509.67089546,0.00026027,2]
[332195144,1721026261230,-504.05,0.00026027,2]
[332195145,1721026261239,-500.0,0.00026027,2]
[332195146,1721026261250,-500.0,0.00026027,2]
[332195147,1721026261259,-500.0,0.00026027,2]
[332195148,1721026261268,-500.0,0.00026027,2]
[332195149,1721026261278,-500.0,0.00026027,2]
[332195150,1721026261288,-500.0,0.00026027,2]
[332195151,1721026261297,-582.91,0.00026027,2]
[332195152,1721026261307,-200.2081967,0.0002607,2]
[332195153,1721026261316,-498.0,0.00026145,2]
[332195154,1721026261327,-156.416538,0.00026278,2]
[332195155,1721026261336,-2000.0,0.00026292,2]
[332195156,1721026261345,-2000.0,0.00026301,2]
[332195157,1721026261354,-500.0,0.00026301,2]
[332195158,1721026261366,-500.0,0.00026301,2]
[332195159,1721026261375,-500.0,0.00026301,2]
[332195160,1721026261384,-500.0,0.00026301,2]
[332195161,1721026261393,-500.0,0.00026301,2]
[332195162,1721026261403,-500.0,0.00026301,2]
[332195163,1721026261413,-500.0,0.00026301,2]
[332195164,1721026261422,-1045.52,0.00026301,4]
[332195165,1721026261432,-500.0,0.00026301,2]
[332195166,1721026261441,-500.0,0.00026301,2]
[332195167,1721026261451,-500.0,0.00026301,2]
[332195168,1721026261461,-500.0,0.00026301,2]
[332195169,1721026261470,-218.17072659,0.00026301,2]
[332195170,1721026261479,-500.0,0.00026301,2]
[332195171,1721026261488,-500.0,0.00026301,2]
[332195172,1721026261497,-508.63624384,0.00026301,2]
[332195173,1721026261506,-500.0,0.00026301,2]
[332195174,1721026261515,-500.0,0.00026301,2]
[332195175,1721026261524,-500.0,0.00026301,2]
[332195176,1721026261533,-500.0,0.00026301,2]
[332195177,1721026261542,-500.0,0.00026301,2]
[332195178,1721026261551,-500.0,0.00026301,2]
[332195179,1721026261560,-500.0,0.00026301,2]
[332195180,1721026261570,-500.0,0.00026301,2]
[332195181,1721026261580,-500.0,0.00026301,2]
[332195182,1721026261590,-500.0,0.00026301,2]
[332195183,1721026261599,-500.0,0.00026301,2]
[332195184,1721026261609,-168.3383261,0.00026301,2]
[332195185,1721026261618,-500.0,0.00026301,2]
[332195186,1721026261627,-561.05842069,0.00026301,2]
[332195187,1721026261702,-626.40075971,0.00026301,2]
[332195188,1721026261713,-500.0,0.00026301,2]
[332195189,1721026261722,-397.92597594,0.00026301,2]
[332195190,1721026261732,-510.97150258,0.00026301,2]
[332195191,1721026261741,-500.0,0.00026301,2]
[332195192,1721026261750,-500.0,0.00026301,2]
[332195193,1721026261760,-500.0,0.00026301,2]
[332195194,1721026261769,-571.92318168,0.00026301,2]
[332195195,1721026261778,-586.93785292,0.00026301,2]
[332195196,1721026261787,-500.0,0.00026301,2]
[332195197,1721026261797,-1500.0,0.00026301,2]
[332195198,1721026261808,-805.28,0.00026301,2]
[332195199,1721026261817,-500.0,0.00026301,2]
[332195200,1721026261828,-500.0,0.00026301,2]
[332195201,1721026261837,-500.0,0.00026301,2]
[332195202,1721026261846,-500.0,0.00026301,2]
[332195203,1721026261855,-500.0,0.00026301,2]
[332195204,1721026261865,-500.0,0.00026301,2]
[332195205,1721026261875,-500.0,0.00026301,2]
[332195206,1721026261884,-500.0,0.00026301,2]
[332195207,1721026261893,-1706.13,0.00026301,2]
[332195208,1721026261903,-500.0,0.00026301,2]
[332195209,1721026261913,-500.0,0.00026301,2]
[332195210,1721026261922,-200.0,0.00026301,2]
[332195211,1721026261932,-1096.79,0.00026301,2]
[332195212,1721026261941,-500.0,0.00026301,2]
[332195213,1721026261951,-500.0,0.00026301,2]
[332195214,1721026261961,-3884.22,0.00026301,2]
[332195215,1721026261973,-500.0,0.00026301,2]
[332195216,1721026261982,-334.78237714,0.00026301,2]
[332195217,1721026261992,-500.0,0.00026301,2]
[332195218,1721026262001,-500.0,0.00026301,2]
[332195219,1721026262011,-518.70969948,0.00026301,2]
[332195220,1721026262020,-500.0,0.00026301,2]
[332195221,1721026262030,-500.0,0.00026301,2]
[332195222,1721026262042,-500.0,0.00026301,2]
[332195223,1721026262051,-500.0,0.00026301,2]
[332195224,1721026262060,-500.0,0.00026301,2]
[332195225,1721026262072,-527.44450704,0.00026301,2]
[332195226,1721026262081,-536.45718785,0.00026301,2]
[332195227,1721026262090,-432.26522267,0.00026301,2]
[332195228,1721026262100,-500.0,0.00026301,2]
[332195229,1721026262109,-500.0,0.00026301,2]
[332195230,1721026262119,-500.0,0.00026301,2]
[332195231,1721026262128,-500.0,0.00026301,2]
[332195232,1721026262139,-500.0,0.00026301,2]
[332195233,1721026262149,-500.0,0.00026301,2]
[332195234,1721026262162,-1172.7,0.00026301,2]
[332195235,1721026262172,-500.0,0.00026301,2]
[332195236,1721026262182,-506.17293729,0.00026301,2]
[332195237,1721026262191,-500.0,0.00026301,2]
[332195238,1721026262200,-500.0,0.00026301,2]
[332195239,1721026262210,-500.0,0.00026301,2]
[332195240,1721026262219,-535.89,0.00026301,2]
[332195241,1721026262230,-500.0,0.00026301,2]
[332195242,1721026262241,-500.0,0.00026301,2]
[332195243,1721026262250,-500.0,0.00026301,2]
[332195244,1721026262266,-653.44,0.00026301,2]
[332195245,1721026262287,-500.0,0.00026301,2]
[332195246,1721026262303,-500.0,0.00026301,2]
[332195247,1721026262322,-500.0,0.00026301,2]
[332195248,1721026262344,-500.0,0.00026301,2]
[332195249,1721026262363,-522.62,0.00026301,2]
[332195250,1721026262383,-500.0,0.00026301,2]
[332195251,1721026262398,-742.99,0.00026301,2]
[332195252,1721026262416,-500.0,0.00026301,2]
[332195253,1721026262436,-607.04,0.00026301,2]
[332195254,1721026262456,-500.0,0.00026301,2]
[332195255,1721026262470,-500.0,0.00026301,2]
[332195256,1721026262488,-500.0,0.00026301,2]
[332195257,1721026262504,-500.0,0.00026301,2]
[332195258,1721026262521,-500.0,0.00026301,2]
[332195259,1721026262536,-500.0,0.00026301,2]
[332195260,1721026262548,-724.14,0.00026301,2]
[332195261,1721026262564,-14894.31,0.00026301,2]
[332195262,1721026262580,-500.0,0.00026301,2]
[332195263,1721026262594,-5499.13,0.00026301,2]
[332195264,1721026262610,-500.0,0.00026301,2]
[332195265,1721026262624,-500.0,0.00026301,2]
[332195266,1721026262639,-505.58573905,0.00026301,2]
[332195267,1721026262653,-500.0,0.00026301,2]
[332195268,1721026262666,-500.0,0.00026301,2]
[332195269,1721026262680,-500.0,0.00026301,2]
[332195270,1721026262694,-2970.66,0.00026301,2]
[332195271,1721026262708,-500.0,0.00026301,2]
[332195272,1721026262722,-500.0,0.00026301,2]
[332195273,1721026262742,-500.0,0.00026301,2]
[332195274,1721026262755,-822.23,0.00026301,2]
[332195275,1721026262764,-500.0,0.00026301,2]
[332195276,1721026262774,-500.0,0.00026301,2]
[332195277,1721026262784,-504.05,0.00026301,2]
[332195278,1721026262793,-500.0,0.00026301,2]
[332195279,1721026262803,-500.0,0.00026301,2]
[332195280,1721026262812,-500.0,0.00026301,2]
[332195281,1721026262822,-330.80035819,0.00026301,2]
[332195282,1721026262833,-500.0,0.00026301,2]
[332195283,1721026262843,-383.56544919,0.00026301,2]
[332195284,1721026262852,-582.91,0.00026301,2]
[332195285,1721026262861,-280.5,0.00026359,2]
[332195286,1721026262871,-425.151,0.00026432,2]
[332195287,1721026262881,-3200.0,0.00026432,2]
[332195288,1721026262890,-872.63645661,0.00026495,2]
[332195289,1721026262900,-2451.07613,0.000265,2]
[332195290,1721026262910,-3000.0,0.000265,2]
[332195291,1721026262919,-3000.0,0.0002651,2]
[332195292,1721026262928,-3000.0,0.0002652,2]
[332195293,1721026262938,-3000.0,0.0002653,2]
[332195294,1721026262947,-3000.0,0.0002654,2]
[332195295,1721026262956,-872.63645661,0.00026541,2]
[332195296,1721026262967,-3000.0,0.0002655,2]
[332195297,1721026262976,-3000.0,0.0002656,2]
[332195298,1721026262986,-378.4363095,0.00026563,2]
[332195299,1721026262996,-3000.0,0.0002657,2]
[332195300,1721026263005,-500.0,0.00026575,2]
[332195301,1721026263217,-500.0,0.00026575,2]
[332195302,1721026263229,-500.0,0.00026575,2]
[332195303,1721026263239,-500.0,0.00026575,2]
[332195304,1721026263249,-500.0,0.00026575,2]
[332195305,1721026263258,-500.0,0.00026575,2]
[332195306,1721026263269,-500.0,0.00026575,2]
[332195307,1721026263279,-1045.52,0.00026575,4]
[332195308,1721026263289,-500.0,0.00026575,2]
[332195309,1721026263299,-393.63978521,0.00026575,2]
[332195310,1721026263310,-500.0,0.00026575,2]
[332195311,1721026263320,-499.99788175,0.00026575,2]
[332195312,1721026263333,-500.0,0.00026575,2]
[332195313,1721026263343,-500.0,0.00026575,2]
[332195314,1721026263353,-500.0,0.00026575,2]
[332195315,1721026263369,-500.0,0.00026575,2]
[332195316,1721026263379,-500.0,0.00026575,2]
[332195317,1721026263388,-500.0,0.00026575,2]
[332195318,1721026263398,-240.72591802,0.00026575,2]
[332195319,1721026263409,-500.0,0.00026575,2]
[332195320,1721026263418,-261.49955529,0.00026575,2]
[332195321,1721026263428,-500.0,0.00026575,2]
[332195322,1721026263439,-500.0,0.00026575,2]
[332195323,1721026263450,-500.0,0.00026575,2]
[332195324,1721026263459,-500.0,0.00026575,2]
[332195325,1721026263470,-195.929738,0.00026575,2]
[332195326,1721026263479,-500.0,0.00026575,2]
[332195327,1721026263490,-500.0,0.00026575,2]
[332195328,1721026263499,-500.0,0.00026575,2]
[332195329,1721026263509,-500.0,0.00026575,2]
[332195330,1721026263519,-500.0,0.00026575,2]
[332195331,1721026263529,-1522.275421,0.00026575,2]
[332195332,1721026263540,-805.28,0.00026575,2]
[332195333,1721026263550,-500.0,0.00026575,2]
[332195334,1721026263560,-325.2892767,0.00026575,2]
[332195335,1721026263569,-500.0,0.00026575,2]
[332195336,1721026263579,-500.0,0.00026575,2]
[332195337,1721026263588,-500.0,0.00026575,2]
[332195338,1721026263597,-613.38388132,0.00026575,2]
[332195339,1721026263607,-500.0,0.00026575,2]
[332195340,1721026263617,-500.0,0.00026575,2]
[332195341,1721026263626,-1706.13,0.00026575,2]
[332195342,1721026263636,-500.0,0.00026575,2]
[332195343,1721026263646,-500.0,0.00026575,2]
[332195344,1721026263657,-200.0,0.00026575,2]
[332195345,1721026263666,-1096.79,0.00026575,2]
[332195346,1721026263676,-512.40182545,0.00026575,2]
[332195347,1721026263686,-500.0,0.00026575,2]
[332195348,1721026263696,-3884.22,0.00026575,2]
[332195349,1721026263706,-486.50479776,0.00026575,2]
[332195350,1721026263716,-404.93395029,0.00026575,2]
[332195351,1721026263726,-500.0,0.00026575,2]
[332195352,1721026263735,-500.0,0.00026575,2]
[332195353,1721026263745,-500.0,0.00026575,2]
[332195354,1721026263755,-506.47412365,0.00026575,2]
[332195355,1721026263765,-377.18362097,0.00026575,2]
[332195356,1721026263776,-500.0,0.00026575,2]
[332195357,1721026263785,-508.86795897,0.00026575,2]
[332195358,1721026263795,-500.0,0.00026575,2]
[332195359,1721026263804,-500.0,0.00026575,2]
[332195360,1721026263814,-500.0,0.00026575,2]
[332195361,1721026263824,-500.0,0.00026575,2]
[332195362,1721026263835,-500.0,0.00026575,2]
[332195363,1721026263845,-1172.7,0.00026575,2]
[332195364,1721026263854,-500.0,0.00026575,2]
[332195365,1721026263864,-500.0,0.00026575,2]
[332195366,1721026263873,-524.64721976,0.00026575,2]
[332195367,1721026263883,-500.0,0.00026575,2]
[332195368,1721026263893,-500.0,0.00026575,2]
[332195369,1721026263902,-535.89,0.00026575,2]
[332195370,1721026263912,-500.0,0.00026575,2]
[332195371,1721026263922,-500.0,0.00026575,2]
[332195372,1721026263932,-653.44,0.00026575,2]
[332195373,1721026263941,-339.53442985,0.00026575,2]
[332195374,1721026263951,-500.0,0.00026575,2]
[332195375,1721026263962,-241.47178922,0.00026575,2]
[332195376,1721026263972,-336.6308613,0.00026575,2]
[332195377,1721026263982,-522.62,0.00026575,2]
[332195378,1721026263992,-500.0,0.00026575,2]
[332195379,1721026264002,-742.99,0.00026575,2]
[332195380,1721026264012,-500.0,0.00026575,2]
[332195381,1721026264022,-607.04,0.00026575,2]
[332195382,1721026264033,-500.0,0.00026575,2]
[332195383,1721026264043,-516.14284265,0.00026575,2]
[332195384,1721026264053,-500.0,0.00026575,2]
[332195385,1721026264064,-500.0,0.00026575,2]
[332195386,1721026264074,-500.0,0.00026575,2]
[332195387,1721026264087,-561.9509239,0.00026575,2]
[332195388,1721026264097,-724.14,0.00026575,2]
[332195389,1721026264108,-14894.31,0.00026575,2]
[332195390,1721026264117,-500.0,0.00026575,2]
[332195391,1721026264127,-5499.13,0.00026575,2]
[332195392,1721026264137,-500.0,0.00026575,2]
[332195393,1721026264147,-500.0,0.00026575,2]
[332195394,1721026264157,-500.0,0.00026575,2]
[332195395,1721026264166,-500.0,0.00026575,2]
[332195396,1721026264176,-500.0,0.00026575,2]
[332195397,1721026264186,-2970.66,0.00026575,2]
[332195398,1721026264196,-500.0,0.00026575,2]
[332195399,1721026264205,-500.0,0.00026575,2]
[332195400,1721026264215,-500.0,0.00026575,2]
[332195401,1721026264225,-822.23,0.00026575,2]
[332195402,1721026264236,-500.0,0.00026575,2]
[332195403,1721026264247,-500.0,0.00026575,2]
[332195404,1721026264258,-504.05,0.00026575,2]
[332195405,1721026264269,-500.0,0.00026575,2]
[332195406,1721026264278,-500.0,0.00026575,2]
[332195407,1721026264288,-500.0,0.00026575,2]
[332195408,1721026264297,-500.0,0.00026575,2]
[332195409,1721026264308,-582.91,0.00026575,2]
[332195410,1721026264317,-3000.0,0.0002658,2]
[332195411,1721026264329,-3000.0,0.0002659,2]
[332195412,1721026264338,-2060.37822191,0.000266,2]
[332195413,1721026264347,-3000.0,0.000266,2]
[332195414,1721026264358,-5071.12377993,0.0002661,30]
[332195415,1721026264369,-3000.0,0.0002661,2]
[332195416,1721026264378,-157.07969579,0.00026611,2]
[332195417,1721026264388,-3000.0,0.0002662,2]
[332195418,1721026264398,-3000.0,0.0002663,2]
[332195419,1721026264407,-3000.0,0.0002664,2]
[332195420,1721026264417,-155.64170677,0.00026646,2]
[332195421,1721026264426,-3000.0,0.0002665,2]
[332195422,1721026264437,-3000.0,0.0002666,2]
[332195423,1721026264447,-3000.0,0.0002667,2]
[332195424,1721026264456,-3000.0,0.0002668,2]
[332195425,1721026264466,-3000.0,0.0002669,2]
[332195426,1721026264476,-3000.0,0.000267,2]
[332195427,1721026264485,-3000.0,0.0002671,2]
[332195428,1721026264495,-3000.0,0.0002672,2]
[332195429,1721026264504,-3000.0,0.0002673,2]
[332195430,1721026264514,-3000.0,0.0002674,2]
[332195431,1721026264524,-214.20956249,0.00026741,2]
[332195432,1721026264699,-183.978537,0.0002399,7]
[332195433,1721026264708,-266.987352,0.0002399,7]
[332195434,1721026264718,-183.978537,0.00024,7]
[332195435,1721026264727,-266.987352,0.00024,7]
[332195436,1721026264736,-183.978537,0.00024657,7]
[332195437,1721026264746,-183.978537,0.00024657,7]
[332195438,1721026264756,-266.987352,0.00024657,7]
[332195439,1721026264765,-183.978537,0.00024657,7]
[332195440,1721026264775,-141.64968947,0.00024657,7]
[332195443,1721026433768,150.0,0.000157,2]
[332195444,1721026460865,201.09696769,0.00014999,2]
[332195445,1721026467155,155.96505769,0.00014999,2]
[332195446,1721026477648,308.77890208,0.00014999,2]
[332195447,1721026494982,168.4821468,0.00014999,2]
[332195448,1721026541746,156.81167192,0.00014999,2]
[332195461,1721026693107,151.0,0.0001499,2]
[332195463,1721027027009,610.635225,0.00015,2]
[332195464,1721027115718,400.01,0.0002525,120]
[332195465,1721027161489,306.54692489,0.00014999,2]
[332195466,1721027201768,154.63660398,0.00014999,2]
[332195468,1721027362627,155.14622159,0.00014999,2]
[332195469,1721027365985,-300.0,0.00016254,2]
[332195470,1721027366015,-69.41308417,0.00016255,2]
[332195527,1721027431946,-300.0,0.00016254,2]
[332195530,1721027431956,-42203.40044309,0.00016255,2]
[332195532,1721027431966,-1986.07407581,0.00017779,2]
[332195534,1721027431975,-198.0,0.00017879,2]
[332195536,1721027431985,-237.7357059,0.00017974,2]
[332195538,1721027431994,-164.7308767,0.00018483,2]
[332195540,1721027432002,-191.27347695,0.00018798,2]
[332195542,1721027432011,-250.0,0.00019041,2]
[332195544,1721027432020,-1138.39020712,0.00019164,2]
[332195545,1721027432031,-24900.0,0.00019399,2]
[332195547,1721027432040,-290.51521894,0.0002,2]
[332195549,1721027432049,-1986.07407578,0.00020225,2]
[332195551,1721027432059,-332.38567,0.00021096,2]
[332195552,1721027432067,-166.666666,0.00021918,2]
[332195554,1721027432077,-880.93169364,0.00022,2]